bitfinex/quotes_SOLUSD_20250403
["timestamp","ask_amount","ask_price","bid_price","bid_amount"]
[1743691730432,0.0001,112.83,112.82,116.70238938]
[1743691730745,0.0001,112.83,112.82,91.1735]
[1743691731647,0.0001,112.83,112.82,110.67778938]
[1743691731943,0.0001,112.83,112.82,8.8636]
[1743691732140,0.0001,112.83,112.79,88.3903]
[1743691732323,9.6601,112.83,112.79,110.57298938]
[1743691732527,29.16438938,112.83,112.79,91.0687]
[1743691732925,29.16438938,112.83,112.79,110.57298938]
[1743691732926,9.6601,112.83,112.79,110.57298938]
[1743691733126,9.6601,112.83,112.8,19.50428938]
[1743691733526,9.6601,112.83,112.81,19.50428938]
[1743691733733,0.0001,112.83,112.82,19.50428938]
[1743691733944,0.0001,112.83,112.82,100.20418938]
[1743691734144,0.0001,112.83,112.82,80.6999]
[1743691734928,19.50438938,112.83,112.78,8.8663]
[1743691735128,19.50428938,112.81,112.77,8.8676]
[1743691735449,19.50428938,112.8,112.77,8.8676]
[1743691736248,19.50428938,112.8,112.76,8.8679]
[1743691737047,9.66,112.81,112.77,19.50428938]
[1743691737245,19.50428938,112.8,112.76,8.8679]
[1743691737626,19.50428938,112.79,112.76,8.8679]
[1743691738241,19.50428938,112.8,112.76,8.8679]
[1743691738745,19.50428938,112.79,112.75,89.5686]
[1743691739343,19.50428938,112.78,112.75,89.5686]
[1743691739536,19.50428938,112.79,112.75,89.5686]
[1743691739846,29.16428938,112.8,112.75,109.07288938]
[1743691740053,19.50428938,112.78,112.75,89.5686]
[1743691740255,19.50428938,112.79,112.75,89.5686]
[1743691740755,9.66,112.8,112.76,19.50428938]
[1743691741450,0.0001,112.83,112.79,19.50428938]
[1743691741656,0.0001,112.83,112.81,19.50428938]
[1743691741951,0.0001,112.83,112.81,80.6999]
[1743691742458,19.50438938,112.83,112.79,80.6999]
[1743691742633,0.0001,112.83,112.8,8.8652]
[1743691742833,0.0001,112.83,112.8,28.36948938]
[1743691743033,0.0001,112.83,112.8,8.8652]
[1743691743341,0.0001,112.83,112.8,28.36948938]
[1743691743742,0.0001,112.83,112.8,8.8652]
[1743691744249,19.50428938,112.82,112.79,89.5656]
[1743691744558,0.0001,112.83,112.79,131.23488938]
[1743691744758,0.0001,112.83,112.8,19.50428938]
[1743691744959,0.0001,112.83,112.79,131.23488938]
[1743691745162,19.50428938,112.82,112.78,8.8662]
[1743691745458,19.50438938,112.83,112.8,0.03]
[1743691745758,0.0001,112.83,112.8,0.03]
[1743691745958,19.50438938,112.83,112.8,0.03]
[1743691746548,0.0001,112.83,112.8,19.53428938]
[1743691746746,0.0001,112.83,112.81,28.36868938]
[1743691746945,0.0001,112.83,112.81,8.8644]
[1743691747851,0.0001,112.83,112.8,8.8947]
[1743691748056,19.50438938,112.83,112.8,0.03]
[1743691748255,19.50438938,112.83,112.8,8.8951]
[1743691748451,19.50438938,112.83,112.8,0.03]
[1743691748452,19.50428938,112.82,112.8,0.03]
[1743691748651,19.50438938,112.83,112.8,0.03]
[1743691748859,0.0001,112.83,112.8,0.03]
[1743691749261,0.0001,112.83,112.82,19.64645095]
[1743691749462,0.063,112.88,112.85,26.0]
[1743691749647,0.063,112.88,112.87,19.50428938]
[1743691749858,0.0001,112.92,112.87,19.50428938]
[1743691750166,0.0001,112.92,112.9,19.50428938]
[1743691750663,0.0001,112.92,112.91,19.50428938]
[1743691750868,0.0001,112.92,112.91,28.36088938]
[1743691751649,0.0001,112.92,112.91,39.98604123]
[1743691752252,0.063,112.94,112.91,47.91754123]
[1743691752443,0.063,112.94,112.93,31.12944123]
[1743691752946,0.063,112.94,112.91,113.44274123]
[1743691753159,0.063,112.94,112.92,31.12944123]
[1743691753888,0.063,112.94,112.91,80.7]
[1743691754063,0.063,112.94,112.91,89.5564]
[1743691754360,0.063,112.94,112.91,120.68584123]
[1743691754566,0.063,112.94,112.92,31.12944123]
[1743691755346,0.063,112.94,112.92,8.8555]
[1743691755548,0.063,112.94,112.91,120.68564123]
[1743691756356,0.063,112.94,112.93,31.12944123]
[1743691756762,0.063,112.94,112.92,31.12944123]
[1743691757172,0.063,112.94,112.91,111.82944123]
[1743691757348,0.063,112.94,112.91,80.7]
[1743691757547,31.19244123,112.94,112.91,80.7]
[1743691757757,31.12944123,112.93,112.89,89.5578]
[1743691758268,31.12944123,112.92,112.89,89.5578]
[1743691758573,0.063,112.94,112.89,120.68724123]
[1743691758789,31.12944123,112.93,112.89,89.5578]
[1743691759158,0.063,112.94,112.9,31.12944123]
[1743691759484,0.063,112.94,112.91,31.12944123]
[1743691760057,31.19244123,112.94,112.89,111.7032]
[1743691760359,31.19244123,112.94,112.89,120.68724123]
[1743691760567,31.12944123,112.93,112.89,89.5578]
[1743691760777,0.063,112.94,112.89,120.68724123]
[1743691760974,0.063,112.94,112.9,31.12944123]
[1743691761176,31.19244123,112.94,112.9,8.8571]
[1743691761877,0.063,112.94,112.9,39.98654123]
[1743691762787,0.063,112.94,112.86,54.62754363]
[1743691762788,26.0,112.88,112.8,80.73]
[1743691762959,31.12944123,112.85,112.81,8.8644]
[1743691763159,31.12944123,112.85,112.81,89.5644]
[1743691763561,9.64,112.87,112.84,31.12944123]
[1743691763764,9.64,112.87,112.84,111.82944123]
[1743691764155,9.64,112.87,112.84,80.7]
[1743691764388,9.64,112.87,112.83,31.12944123]
[1743691764562,40.76944123,112.87,112.82,31.12944123]
[1743691764984,40.76944123,112.87,112.81,112.00982314]
[1743691764985,40.76944123,112.87,112.81,111.7255]
[1743691765160,40.76944123,112.87,112.82,40.27716437]
[1743691765362,31.12944123,112.86,112.82,8.8634]
[1743691765592,31.12944123,112.85,112.81,80.7]
[1743691765781,31.12944123,112.84,112.81,89.5643]
[1743691765971,18.4998,112.87,112.81,80.7]
[1743691766278,31.12944123,112.84,112.81,80.7]
[1743691766584,31.12944123,112.85,112.81,89.5643]
[1743691766779,9.64,112.87,112.81,89.5643]
[1743691767159,9.64,112.88,112.83,8.8628]
[1743691767369,31.12944123,112.86,112.83,8.8628]
[1743691767785,31.12944123,112.86,112.83,89.5628]
[1743691767984,31.12944123,112.84,112.83,80.7]
[1743691768158,31.12944123,112.84,112.8,89.5948]
[1743691769171,31.12944123,112.83,112.81,0.03]
[1743691769580,31.12944123,112.84,112.81,0.03]
[1743691770065,31.12944123,112.83,112.81,0.03]
[1743691770979,31.12944123,112.86,112.81,0.03]
[1743691770980,31.12944123,112.84,112.81,0.03]
[1743691771668,31.12944123,112.84,112.81,81.15648471]
[1743691772268,31.12944123,112.84,112.81,80.73]
[1743691772985,8.8601,112.87,112.81,80.73]
[1743691773189,31.12944123,112.85,112.82,8.8636]
[1743691773569,31.12944123,112.84,112.82,8.8636]
[1743691774088,31.12944123,112.85,112.82,8.8636]
[1743691774582,31.12944123,112.84,112.82,8.8636]
[1743691774988,31.12944123,112.83,112.81,89.594]
[1743691775691,31.12944123,112.82,112.81,0.03]
[1743691775877,40.76944123,112.82,112.81,0.03]
[1743691776198,90.54853132,112.82,112.81,0.03]
[1743691776406,65.72219009,112.82,112.81,0.03]
[1743691777185,8.8652,112.8,112.74,8.8699]
[1743691777382,31.12944123,112.76,112.74,8.8699]
[1743691777680,31.12944123,112.75,112.73,89.5705]
[1743691778270,31.12944123,112.75,112.73,80.7]
[1743691778505,31.12944123,112.74,112.73,80.7]
[1743691779800,31.12944123,112.75,112.73,89.5707]
[1743691780205,9.64,112.77,112.73,89.5707]
[1743691780380,31.12944123,112.76,112.73,89.5707]
[1743691781100,24.42946157,112.81,112.73,120.73014123]
[1743691781101,8.8644,112.81,112.73,120.73014123]
[1743691781400,31.12944123,112.78,112.73,31.0775]
[1743691781602,31.12944123,112.78,112.74,19.07613357]
[1743691781902,9.64,112.79,112.74,19.07613357]
[1743691781903,40.76944123,112.79,112.74,50.2055748]
[1743691782804,31.12944123,112.78,112.73,140.67224123]
[1743691783396,31.12944123,112.78,112.73,109.5428]
[1743691783608,9.64,112.79,112.74,31.12944123]
[1743691783809,40.76944123,112.79,112.74,31.12944123]
[1743691784107,40.76944123,112.79,112.74,111.82944123]
[1743691785677,40.76944123,112.79,112.75,8.8691]
[1743691787080,9.64,112.79,112.75,120.69854123]
[1743691787383,31.12944123,112.8,112.75,142.87144123]
[1743691787584,31.12944123,112.79,112.75,111.742]
[1743691787805,31.12944123,112.79,112.75,89.5691]
[1743691788409,31.12944123,112.78,112.75,89.5691]
[1743691789391,31.12944123,112.79,112.75,142.87144123]
[1743691789614,31.12944123,112.8,112.75,142.87144123]
[1743691789809,9.64,112.81,112.76,31.12944123]
[1743691790015,40.76944123,112.81,112.76,111.82944123]
[1743691790225,15.9431,112.82,112.76,111.82944123]
[1743691790414,31.12944123,112.81,112.76,111.82944123]
[1743691790933,15.9431,112.82,112.76,80.7]
[1743691790934,31.12944123,112.8,112.76,80.7]
[1743691791225,31.12944123,112.77,112.73,0.03]
[1743691791389,31.12944123,112.76,112.73,0.03]
[1743691791593,31.12944123,112.75,112.73,0.03]
[1743691791816,31.12944123,112.75,112.73,8.9005]
[1743691792713,31.12944123,112.76,112.73,8.9005]
[1743691794700,31.12944123,112.75,112.73,0.03]
[1743691794915,31.12944123,112.74,112.73,0.03]
[1743691797427,31.12944123,112.75,112.73,0.03]
[1743691798019,31.12944123,112.76,112.73,0.03]
[1743691798412,9.64,112.77,112.73,0.03]
[1743691798721,31.12944123,112.76,112.73,0.03]
[1743691799221,31.12944123,112.74,112.73,0.03]
[1743691800018,18.5079,112.77,112.73,0.03]
[1743691800019,31.12944123,112.75,112.73,0.03]
[1743691800207,31.12944123,112.76,112.73,0.03]
[1743691800409,31.12944123,112.77,112.73,0.03]
[1743691800617,31.12944123,112.76,112.73,0.03]
[1743691800818,31.12944123,112.75,112.73,0.03]
[1743691801020,31.12944123,112.74,112.73,0.03]
[1743691801415,8.8687,112.76,112.73,0.03]
[1743691801602,31.12944123,112.76,112.73,0.03]
[1743691802008,9.64,112.77,112.73,0.03]
[1743691802212,31.12944123,112.75,112.73,0.03]
[1743691802411,9.64,112.77,112.73,0.03]
[1743691802615,40.76944123,112.77,112.73,0.03]
[1743691803721,31.12944123,112.75,112.73,0.03]
[1743691804035,9.64,112.77,112.73,0.03]
[1743691804036,31.12944123,112.76,112.73,0.03]
[1743691804338,31.12944123,112.83,112.76,18.933972]
[1743691804508,31.12944123,112.84,112.79,31.12944123]
[1743691804703,31.12944123,112.84,112.78,31.12944123]
[1743691805320,0.063,112.8,112.79,8.866]
[1743691805711,0.063,112.8,112.78,89.5665]
[1743691805712,31.19244123,112.8,112.78,89.5665]
[1743691805930,40.83244123,112.8,112.78,80.7]
[1743691806124,9.703,112.8,112.78,89.5665]
[1743691807137,40.83244123,112.8,112.78,89.5665]
[1743691807332,9.703,112.8,112.78,89.5665]
[1743691808134,9.703,112.8,112.78,80.7]
[1743691808135,31.12944123,112.79,112.78,80.7]
[1743691808301,37.50264123,112.79,112.75,8.8688]
[1743691808502,31.12944123,112.77,112.75,8.8688]
[1743691808916,31.12944123,112.76,112.73,0.03]
[1743691809122,40.76944123,112.75,112.73,0.03]
[1743691809329,9.64,112.74,112.73,0.03]
[1743691809509,9.64,112.76,112.73,0.03]
[1743691810110,31.12944123,112.75,112.73,0.03]
[1743691810322,31.12944123,112.74,112.73,0.03]
[1743691811516,9.64,112.76,112.73,0.03]
[1743691811720,31.12944123,112.75,112.73,0.03]
[1743691812446,31.12944123,112.74,112.73,0.03]
[1743691813227,68.57584403,112.74,112.73,0.03]
[1743691813409,68.57584403,112.74,112.72,0.03]
[1743691813410,27.804672,112.73,112.72,0.03]
[1743691813716,26.28432314,112.71,112.7,0.03]
[1743691813911,417.56125166,112.71,112.7,0.03]
[1743691814112,0.28432314,112.69,112.65,0.03]
[1743691814328,26.28432314,112.66,112.65,0.03]
[1743691814530,85.8455748,112.66,112.65,0.03]
[1743691815421,85.8455748,112.66,112.59,8.8816]
[1743691815422,9.16132314,112.65,112.59,8.8816]
[1743691815629,40.29076437,112.65,112.59,8.8816]
[1743691815810,40.00644123,112.65,112.6,8.8806]
[1743691816006,49.92125166,112.65,112.6,8.8806]
[1743691816226,49.92125166,112.65,112.58,31.12944123]
[1743691816426,2.21888195,112.65,112.6,31.12944123]
[1743691816640,2.21888195,112.65,112.63,8.8782]
[1743691816942,2.21888195,112.65,112.64,13.80502662]
[1743691817734,47.29384123,112.7,112.64,147.82906785]
[1743691817915,47.29384123,112.7,112.65,31.12944123]
[1743691818123,40.76944123,112.7,112.65,31.12944123]
[1743691818555,9.64,112.7,112.66,31.12944123]
[1743691818847,40.76944123,112.7,112.64,116.69962662]
[1743691819044,31.12944123,112.69,112.64,147.82906785]
[1743691819353,31.12944123,112.69,112.64,116.69962662]
[1743691819525,31.12944123,112.69,112.64,147.82906785]
[1743691819725,9.64,112.7,112.66,31.12944123]
[1743691820521,363.12944123,112.71,112.66,111.82944123]
[1743691820735,372.76944123,112.71,112.66,111.82944123]
[1743691820937,341.64,112.71,112.67,31.12944123]
[1743691821244,341.64,112.71,112.66,80.7]
[1743691821245,372.76944123,112.71,112.66,80.7]
[1743691821455,372.76944123,112.71,112.66,111.82944123]
[1743691821633,31.12944123,112.7,112.67,8.8754]
[1743691821826,31.12944123,112.69,112.67,8.8754]
[1743691822228,31.12944123,112.68,112.66,89.5759]
[1743691822451,31.12944123,112.68,112.66,8.8759]
[1743691823355,31.12944123,112.67,112.64,4.92722662]
[1743691823550,40.76944123,112.66,112.64,4.92722662]
[1743691823854,40.76944123,112.65,112.64,4.92722662]
[1743691824030,59.56125166,112.65,112.64,4.92722662]
[1743691824238,59.8455748,112.65,112.64,4.92722662]
[1743691824431,19.07613357,112.64,112.59,8.8814]
[1743691824635,31.12944123,112.6,112.54,22.2129]
[1743691824825,19.07613357,112.61,112.5,11.4864]
[1743691824826,6.9503,112.51,112.5,73.1996]
[1743691825027,0.42648471,112.49,112.42,9.5349]
[1743691825234,49.77909009,112.5,112.42,9.5349]
[1743691825448,9.64,112.51,112.42,31.7729]
[1743691825847,31.12944123,112.53,112.44,31.12944123]
[1743691826040,19.07613357,112.55,112.42,156.4489]
[1743691826234,18.79181043,112.49,112.42,9.0349]
[1743691826537,9.82,112.48,112.42,9.035]
[1743691826745,31.12944123,112.49,112.43,31.12944123]
[1743691826947,9.82,112.5,112.44,31.12944123]
[1743691826948,31.12944123,112.5,112.44,31.12944123]
[1743691827155,31.12944123,112.51,112.42,31.273]
[1743691827328,9.82,112.53,112.42,31.273]
[1743691827524,9.82,112.53,112.44,8.8936]
[1743691827730,47.08293121,112.5,112.44,55.97653121]
[1743691827950,47.08293121,112.5,112.44,8.8936]
[1743691828133,19.07613357,112.52,112.44,31.1276]
[1743691828335,47.08293121,112.49,112.44,8.8936]
[1743691828546,47.08293121,112.47,112.44,8.8936]
[1743691828747,47.08293121,112.49,112.44,8.8936]
[1743691829141,47.08293121,112.49,112.43,47.08293121]
[1743691829142,47.08293121,112.48,112.43,8.8941]
[1743691829335,47.08293121,112.47,112.42,56.11793121]
[1743691829550,47.08293121,112.5,112.42,56.11793121]
[1743691829863,47.08293121,112.45,112.42,0.14]
[1743691830037,47.08293121,112.43,112.42,0.14]
[1743691830846,47.08293121,112.44,112.42,0.14]
[1743691831153,9.84,112.46,112.42,0.14]
[1743691831334,47.08293121,112.45,112.42,0.14]
[1743691831732,47.08293121,112.43,112.42,0.14]
[1743691832339,66.15906478,112.43,112.42,0.14]
[1743691833335,154.77613357,112.42,112.32,55.98603121]
[1743691833536,47.08293121,112.37,112.32,55.98603121]
[1743691833754,47.08293121,112.38,112.33,47.08293121]
[1743691833955,9.84,112.41,112.32,8.9031]
[1743691833956,9.84,112.41,112.35,47.08293121]
[1743691834142,56.92293121,112.41,112.36,47.08293121]
[1743691834339,47.08293121,112.4,112.35,47.08293121]
[1743691834538,56.92293121,112.41,112.36,47.08293121]
[1743691834749,9.84,112.41,112.37,47.08293121]
[1743691834937,9.84,112.41,112.38,47.08293121]
[1743691835137,9.84,112.41,112.37,47.08293121]
[1743691835338,9.84,112.41,112.35,26.0]
[1743691835544,9.84,112.41,112.37,47.08293121]
[1743691835743,9.84,112.41,112.39,47.08293121]
[1743691835940,9.84,112.41,112.38,8.8983]
[1743691835941,379.76293121,112.45,112.38,8.8983]
[1743691836155,9.84,112.45,112.41,47.08293121]
[1743691836742,9.84,112.45,112.38,78.22713121]
[1743691836743,9.84,112.45,112.42,47.08293121]
[1743691836951,56.94293121,112.49,112.43,47.08293121]
[1743691837262,47.08293121,112.48,112.43,47.08293121]
[1743691837759,47.08293121,112.48,112.43,55.97733121]
[1743691838138,4.43047134,112.55,112.46,47.08293121]
[1743691838338,47.08293121,112.53,112.47,47.08293121]
[1743691838638,9.86,112.55,112.47,47.08293121]
[1743691838838,47.08293121,112.52,112.47,47.08293121]
[1743691839052,26.0,112.53,112.48,47.08293121]
[1743691839364,47.08293121,112.53,112.48,47.08293121]
[1743691839872,9.86,112.55,112.48,47.08293121]
[1743691840042,47.08293121,112.54,112.49,47.08293121]
[1743691840243,47.08293121,112.53,112.48,47.08293121]
[1743691840644,47.08293121,112.54,112.49,47.08293121]
[1743691840848,56.94293121,112.55,112.46,31.1221]
[1743691841051,56.94293121,112.55,112.5,47.08293121]
[1743691841250,47.08293121,112.54,112.46,111.8221]
[1743691841560,47.08293121,112.51,112.46,89.592]
[1743691841763,47.08293121,112.49,112.43,8.894]
[1743691841951,47.08293121,112.48,112.41,80.7]
[1743691842151,47.08293121,112.47,112.42,55.97783121]
[1743691842352,47.08293121,112.48,112.43,47.08293121]
[1743691842748,47.08293121,112.48,112.44,47.08293121]
[1743691842953,47.08293121,112.48,112.43,47.08293121]
[1743691843158,47.08293121,112.47,112.42,8.8949]
[1743691843344,47.08293121,112.48,112.43,47.08293121]
[1743691843746,9.88,112.5,112.46,47.08293121]
[1743691843947,9.88,112.5,112.47,47.08293121]
[1743691844145,9.88,112.5,112.46,47.08293121]
[1743691845768,9.88,112.5,112.46,55.97453121]
[1743691847162,56.96293121,112.5,112.44,8.8936]
[1743691847361,18.769,112.5,112.44,8.8936]
[1743691847556,47.08293121,112.47,112.43,8.894]
[1743691847742,47.08293121,112.46,112.4,8.8967]
[1743691847948,56.92293121,112.45,112.4,55.97963121]
[1743691848269,9.82,112.44,112.4,55.97963121]
[1743691848564,9.82,112.44,112.41,47.08293121]
[1743691848953,9.82,112.44,112.41,55.97853121]
[1743691849153,9.82,112.44,112.41,8.8956]
[1743691849354,9.82,112.44,112.41,55.97853121]
[1743691849668,9.82,112.52,112.44,0.28432314]
[1743691849870,56.90293121,112.52,112.47,47.08293121]
[1743691850469,56.90293121,112.52,112.49,47.08293121]
[1743691850470,9.82,112.52,112.49,47.08293121]
[1743691850860,9.82,112.52,112.49,55.97223121]
[1743691851053,9.82,112.52,112.49,8.8893]
[1743691851455,9.82,112.52,112.48,47.08293121]
[1743691852365,56.90293121,112.52,112.47,55.97413121]
[1743691852587,18.64964886,112.55,112.49,47.08293121]
[1743691852766,0.063,112.52,112.5,47.08293121]
[1743691853069,0.063,112.52,112.49,55.97213121]
[1743691853288,47.14593121,112.52,112.46,8.892]
[1743691853484,47.08293121,112.5,112.45,47.08293121]
[1743691853781,0.063,112.52,112.44,8.8936]
[1743691853782,47.14593121,112.52,112.47,47.08293121]
[1743691854089,47.08293121,112.5,112.45,47.08293121]
[1743691854262,9.76,112.49,112.45,47.08293121]
[1743691854459,9.823,112.52,112.47,47.08293121]
[1743691854675,47.08293121,112.51,112.44,89.5936]
[1743691854974,47.08293121,112.51,112.46,47.08293121]
[1743691854975,55.97153121,112.51,112.46,47.08293121]
[1743691855271,47.08293121,112.5,112.45,47.08293121]
[1743691855481,47.08293121,112.48,112.42,0.03]
[1743691855774,9.76,112.47,112.43,47.08293121]
[1743691856357,56.84293121,112.47,112.42,47.11293121]
[1743691856556,56.84293121,112.47,112.43,47.08293121]
[1743691856757,9.76,112.47,112.43,47.08293121]
[1743691856952,9.76,112.47,112.45,47.08293121]
[1743691857873,9.76,112.47,112.44,47.08293121]
[1743691858078,9.76,112.47,112.42,0.03]
[1743691858270,9.76,112.47,112.43,47.08293121]
[1743691858782,9.76,112.47,112.44,8.8936]
[1743691859080,47.08293121,112.45,112.42,0.03]
[1743691859281,18.64964886,112.46,112.42,0.03]
[1743691859575,56.84293121,112.47,112.43,47.08293121]
[1743691859764,9.76,112.47,112.43,47.08293121]
[1743691860181,9.76,112.47,112.44,47.08293121]
[1743691860759,9.76,112.47,112.44,8.8932]
[1743691860974,56.84293121,112.47,112.43,8.894]
[1743691861260,9.7,112.49,112.44,47.08293121]
[1743691861454,47.08293121,112.45,112.42,0.03]
[1743691861678,142.23006157,112.48,112.42,0.03]
[1743691861679,9.78,112.44,112.42,0.03]
[1743691861883,18.64964886,112.47,112.42,0.03]
[1743691862179,9.8,112.46,112.42,0.03]
[1743691862583,0.28432314,112.45,112.42,0.03]
[1743691862755,47.08293121,112.43,112.42,0.03]
[1743691862958,66.15906478,112.43,112.42,0.03]
[1743691863557,70.6060285,112.43,112.42,0.03]
[1743691864388,70.6060285,112.43,112.32,80.7]
[1743691864389,0.42648471,112.42,112.32,80.7]
[1743691864685,47.08293121,112.39,112.34,47.08293121]
[1743691864861,8.8967,112.4,112.34,47.08293121]
[1743691865061,8.8967,112.4,112.35,47.08293121]
[1743691865281,57.12293121,112.41,112.35,47.08293121]
[1743691865459,57.12293121,112.41,112.36,47.08293121]
[1743691865775,47.08293121,112.39,112.33,8.9018]
[1743691865975,47.08293121,112.4,112.34,47.08293121]
[1743691866174,47.08293121,112.4,112.33,8.9018]
[1743691866495,47.08293121,112.39,112.34,47.08293121]
[1743691866681,0.063,112.43,112.37,47.08293121]
[1743691866864,10.02,112.42,112.38,47.08293121]
[1743691867065,26.0,112.36,112.3,0.03]
[1743691867258,10.48,112.35,112.3,8.9343]
[1743691867460,10.48,112.35,112.32,47.08293121]
[1743691867886,10.48,112.35,112.3,0.03]
[1743691868060,57.56293121,112.35,112.3,0.03]
[1743691868258,10.48,112.35,112.3,0.03]
[1743691868459,47.08293121,112.35,112.3,47.11293121]
[1743691868774,10.48,112.35,112.3,47.11293121]
[1743691869163,57.56293121,112.35,112.3,0.03]
[1743691869566,47.08293121,112.34,112.3,0.03]
[1743691869776,10.48,112.35,112.3,47.11293121]
[1743691869958,47.08293121,112.34,112.3,0.03]
[1743691870376,57.56293121,112.35,112.3,47.11293121]
[1743691870582,10.48,112.35,112.31,47.08293121]
[1743691870775,10.48,112.35,112.32,47.08293121]
[1743691871080,10.48,112.35,112.3,0.03]
[1743691871474,10.48,112.35,112.31,47.08293121]
[1743691872074,10.48,112.35,112.3,0.03]
[1743691872276,10.48,112.35,112.32,47.08293121]
[1743691872465,10.48,112.35,112.31,55.98643121]
[1743691873067,47.08293121,112.34,112.31,8.9035]
[1743691873387,10.48,112.35,112.3,8.9343]
[1743691873589,10.48,112.35,112.31,47.08293121]
[1743691873886,47.08293121,112.39,112.34,47.08293121]
[1743691874082,0.063,112.43,112.35,47.08293121]
[1743691874283,47.08293121,112.42,112.37,47.08293121]
[1743691874469,47.08293121,112.39,112.31,80.7]
[1743691874670,47.08293121,112.39,112.34,47.08293121]
[1743691875270,10.58,112.4,112.34,47.08293121]
[1743691875474,47.08293121,112.39,112.32,111.8609]
[1743691875666,10.58,112.4,112.32,111.8609]
[1743691875667,10.58,112.4,112.36,47.08293121]
[1743691876088,10.58,112.4,112.33,0.28432314]
[1743691876269,10.58,112.4,112.36,47.08293121]
[1743691876468,47.08293121,112.41,112.37,8.8991]
[1743691876665,10.56,112.42,112.37,55.98203121]
[1743691876870,47.08293121,112.4,112.32,44.5156]
[1743691877076,47.08293121,112.37,112.32,80.7]
[1743691877276,38.10484886,112.42,112.33,47.08293121]
[1743691877277,47.08293121,112.38,112.33,47.08293121]
[1743691877492,47.08293121,112.38,112.32,22.257]
[1743691877673,47.08293121,112.38,112.33,47.08293121]
[1743691877874,47.08293121,112.37,112.34,0.03]
[1743691878192,27.54604886,112.41,112.34,0.03]
[1743691878390,47.08293121,112.38,112.34,0.03]
[1743691878576,19.4555,112.42,112.34,47.11293121]
[1743691878577,47.08293121,112.39,112.34,47.11293121]
[1743691878889,47.08293121,112.41,112.34,0.03]
[1743691879084,47.08293121,112.4,112.34,0.03]
[1743691879280,10.643,112.43,112.36,47.08293121]
[1743691879482,0.063,112.43,112.38,47.08293121]
[1743691879681,0.063,112.43,112.39,47.08293121]
[1743691879879,47.14593121,112.43,112.38,47.08293121]
[1743691880072,0.063,112.43,112.39,47.08293121]
[1743691880274,0.063,112.43,112.4,8.8967]
[1743691880496,0.063,112.43,112.41,47.08293121]
[1743691880672,0.063,112.43,112.4,78.22153121]
[1743691881195,0.063,112.43,112.41,47.08293121]
[1743691881577,0.063,112.43,112.4,31.1386]
[1743691881774,0.063,112.43,112.41,47.08293121]
[1743691881970,47.14593121,112.43,112.4,8.8967]
[1743691882192,0.063,112.43,112.4,8.8967]
[1743691882492,0.063,112.43,112.41,47.08293121]
[1743691882701,0.063,112.43,112.4,31.1386]
[1743691882885,0.063,112.43,112.4,8.8967]
[1743691883194,0.063,112.43,112.4,55.97963121]
[1743691883493,0.063,112.43,112.4,8.8967]
[1743691883693,0.063,112.43,112.4,78.22153121]
[1743691883875,0.063,112.43,112.4,31.1386]
[1743691884071,0.063,112.43,112.4,78.22153121]
[1743691884275,47.08293121,112.41,112.39,8.8972]
[1743691884482,47.14593121,112.43,112.39,8.8972]
[1743691884693,0.063,112.43,112.39,55.98013121]
[1743691885076,0.063,112.43,112.39,78.22403121]
[1743691885393,0.063,112.43,112.39,31.1411]
[1743691885576,0.063,112.43,112.4,47.08293121]
[1743691885776,0.063,112.43,112.4,31.41010136]
[1743691886184,0.063,112.43,112.39,31.1411]
[1743691886473,0.063,112.43,112.41,31.41010136]
[1743691887081,0.063,112.43,112.42,31.41010136]
[1743691887380,0.063,112.43,112.4,0.28432314]
[1743691887381,0.063,112.43,112.41,80.7]
[1743691887787,0.063,112.43,112.4,31.41010136]
[1743691887994,0.063,112.43,112.42,31.41010136]
[1743691888395,0.063,112.43,112.41,31.41010136]
[1743691888902,41.83010136,112.42,112.35,10.5556]
[1743691889077,31.41010136,112.39,112.35,10.5556]
[1743691889278,10.42,112.42,112.34,8.9314]